bitfinex-derivatives/quotes_ETHF0:USTF0_20260128
["timestamp","ask_amount","ask_price","bid_price","bid_amount"]
[1769611990206,0.16611,3014.3,3013.3,3.57225795]
[1769611991414,0.16612,3014.2,3013.3,3.57225795]
[1769611993015,0.16612,3014.1,3013.3,3.57225795]
[1769611993508,0.16612,3014.1,3012.9,3.57225795]
[1769611995202,0.16609,3014.7,3012.9,3.57225795]
[1769611995507,0.16609,3014.7,3012.8,0.00237328]
[1769611995508,0.16606,3015.3,3013.3,3.57225795]
[1769611995713,3.51966478,3015.5,3013.3,3.57225795]
[1769611995714,0.16606,3015.2,3013.3,3.57225795]
[1769611996608,0.16606,3015.2,3013.5,3.57225795]
[1769611997903,0.17015032,3015.7,3013.6,3.73840795]
[1769611998907,0.17015032,3015.7,3013.8,3.57225795]
[1769611999112,0.17015032,3015.7,3013.8,3.73839795]
[1769611999714,0.17015032,3015.7,3013.5,3.053]
[1769611999715,0.17015032,3015.7,3014.0,3.57225795]
[1769611999913,0.166,3016.3,3014.1,0.16612]
[1769612000213,0.166,3016.3,3014.2,3.57225795]
[1769612001009,0.16602,3016.0,3014.2,3.57225795]
[1769612001210,0.16604,3015.7,3014.3,3.57225795]
[1769612003714,0.16944175,3016.3,3014.3,3.57225795]
[1769612004119,0.16601,3016.2,3014.3,3.73836795]
[1769612004413,3.51966478,3016.1,3014.3,3.57225795]
[1769612004716,0.16605,3015.5,3014.3,3.57225795]
[1769612007017,3.48104062,3015.8,3014.3,3.57225795]
[1769612007322,6.48,3015.9,3014.3,3.57225795]
[1769612007323,3.13020826,3015.7,3014.3,3.57225795]
[1769612007525,0.16603,3015.8,3014.3,3.57225795]
[1769612008719,3.43813904,3015.7,3014.3,3.57225795]
[1769612009019,3.60419904,3015.4,3014.3,3.57225795]
[1769612009414,0.16606,3015.3,3014.3,3.57225795]
[1769612009618,3.60419904,3015.3,3013.2,0.16617]
[1769612009823,6.48,3015.9,3013.3,3.37439424]
[1769612009824,0.16607,3015.1,3013.3,3.37439424]
[1769612011611,0.16607,3015.1,3013.3,3.54055424]
[1769612012026,0.16607,3015.1,3013.5,3.37439424]
[1769612012320,0.16604,3015.6,3013.7,3.37439424]
[1769612012926,0.16605,3015.4,3013.7,3.37439424]
[1769612014821,0.16606,3015.3,3013.7,3.37439424]
[1769612018022,0.00344175,3016.3,3014.2,3.37439424]
[1769612018229,0.16603,3015.8,3014.2,3.37439424]
[1769612019833,0.16608,3015.0,3014.2,3.37439424]
[1769612020032,0.16609,3014.8,3013.3,3.056]
[1769612020337,0.16609,3014.8,3013.4,3.37439424]
[1769612020725,0.16609,3014.8,3013.6,3.37439424]
[1769612020936,3.43813904,3015.2,3013.6,3.37439424]
[1769612021230,0.16612,3014.2,3012.9,3.37439424]
[1769612021427,0.16613,3014.0,3013.0,3.37439424]
[1769612021634,0.16858213,3014.0,3013.0,3.37439424]
[1769612023634,0.16614,3013.8,3013.0,3.37439424]
[1769612023929,0.16614,3013.8,3012.8,0.00237328]
[1769612023930,0.16616,3013.5,3012.8,0.00237328]
[1769612024227,0.43152959,3013.5,3012.8,0.00237328]
[1769612024426,0.00245213,3014.0,3012.8,3.37676752]
[1769612024822,0.27195355,3014.0,3012.8,3.37676752]
[1769612025027,0.16615,3013.7,3012.8,3.37676752]
[1769612026531,3.71009259,3014.0,3012.8,0.00237328]
[1769612026726,0.16617,3013.3,3011.9,5.848]
[1769612026932,3.43813904,3013.6,3012.0,3.37439424]
[1769612026933,0.16618,3013.1,3012.0,3.37439424]
[1769612027735,0.16621,3012.5,3012.0,0.00332251]
[1769612027925,3.43813904,3012.5,3011.4,3.322]
[1769612028427,3.43813904,3012.5,3011.1,3.37439424]
[1769612028629,0.16622,3012.3,3011.1,3.37439424]
[1769612028828,3.43813904,3012.5,3011.1,3.37857714]
[1769612029028,0.16624,3012.1,3011.1,3.37857714]
[1769612029435,0.16625,3011.9,3011.1,3.37857714]
[1769612029938,3.323,3013.2,3009.0,3.37439424]
[1769612029939,0.16629,3011.0,3009.0,3.37439424]
[1769612030131,3.21180244,3011.5,3009.2,3.37439424]
[1769612030432,0.16633,3010.4,3009.2,3.37439424]
[1769612030931,0.17062404,3010.4,3009.2,3.37692396]
[1769612032234,0.16629,3011.1,3009.4,3.37439424]
[1769612032539,0.16629,3011.1,3009.6,3.37439424]
[1769612033139,0.16629,3011.0,3009.6,3.37439424]
[1769612033537,0.00372897,3011.1,3009.6,3.37439424]
[1769612033538,0.1663,3010.9,3009.6,3.37439424]
[1769612034432,0.00372897,3011.1,3009.6,3.37439424]
[1769612034830,0.16627,3011.5,3009.6,3.37439424]
[1769612035235,0.16623,3012.3,3009.8,3.57723106]
[1769612035427,3.19496072,3012.6,3009.8,3.57723106]
[1769612035632,0.16624,3012.0,3009.8,3.57723106]
[1769612035829,0.16624,3012.0,3009.8,3.74359106]
[1769612036034,0.16955078,3012.0,3009.8,3.74359106]
[1769612036234,0.16955078,3012.0,3010.0,3.57723106]
[1769612037239,0.16955078,3012.0,3010.0,3.74358106]
[1769612038141,0.16625,3011.8,3010.2,3.57723106]
[1769612038937,0.16625,3011.8,3010.4,3.57723106]
[1769612039339,0.16625,3011.8,3010.6,3.57723106]
[1769612039744,0.16625,3011.8,3010.6,9.96023106]
[1769612039944,0.16625,3011.8,3010.7,3.57723106]
[1769612040942,0.16629,3011.2,3009.9,3.57723106]
[1769612041442,3.26148928,3012.0,3009.9,3.57723106]
[1769612041443,0.1663,3011.0,3009.9,3.57723106]
[1769612041838,0.1663,3010.8,3009.9,3.57723106]
[1769612042037,0.16631,3010.7,3009.9,3.57723106]
[1769612042743,0.16627,3011.4,3009.9,3.57723106]
[1769612044253,0.16627,3011.4,3010.0,5.357]
[1769612044444,0.00331078,3012.0,3010.1,3.57723106]
[1769612044743,0.00331078,3012.0,3010.3,3.57723106]
[1769612045951,0.16627,3011.5,3010.3,3.57723106]
[1769612046846,0.16628,3011.3,3010.3,3.57723106]
[1769612047043,0.16629,3011.1,3010.3,3.57723106]
[1769612047550,0.16629,3011.1,3009.6,3.57723106]
[1769612047948,3.33783797,3011.7,3009.6,3.57723106]
[1769612048249,0.1663,3010.9,3009.8,3.57723106]
[1769612048847,3.41932637,3011.4,3009.8,3.57723106]
[1769612049548,0.16631,3010.8,3009.8,3.57723106]
[1769612049844,0.16631,3010.7,3009.8,3.57723106]
[1769612050045,0.16632,3010.5,3009.8,3.57723106]
[1769612050239,3.41932637,3011.0,3009.3,3.57723106]
[1769612050442,3.41932637,3010.6,3009.3,3.57723106]
[1769612051957,5.385,3011.8,3008.5,3.57723106]
[1769612051958,0.16636,3009.8,3008.5,3.57723106]
[1769612052846,0.16632,3010.5,3008.5,3.57723106]
[1769612053050,0.4410021,3010.5,3008.5,3.58075013]
[1769612053459,0.16633,3010.4,3008.5,3.58075013]
[1769612053952,0.16633,3010.4,3008.7,3.57723106]
[1769612054152,0.00404871,3010.5,3008.8,0.16642]
[1769612054347,0.1663,3011.0,3008.9,3.57723106]
[1769612054547,0.1663,3011.0,3009.2,3.57723106]
[1769612054749,0.16626,3011.7,3009.2,3.57723106]
[1769612054944,40.8,3011.9,3008.7,1.6455985]
[1769612054945,0.16626,3011.6,3009.5,3.57723106]
[1769612055358,0.16866144,3011.6,3009.7,3.57723106]
[1769612055550,0.16627,3011.5,3009.7,3.57723106]
[1769612057553,0.00240144,3011.6,3009.9,3.57723106]
[1769612058253,0.16622,3012.4,3010.1,3.57723106]
[1769612058457,0.42873849,3013.0,3010.9,3.57723106]
[1769612058758,0.16618,3013.0,3011.4,3.57723106]
[1769612059350,0.16878214,3013.0,3011.4,3.5795962]
[1769612059551,3.326,3013.6,3011.4,3.5795962]
[1769612059748,0.16615,3013.7,3011.9,3.57723106]
[1769612060061,0.16615,3013.7,3012.0,3.06]
[1769612060355,0.16611,3014.4,3012.4,3.57723106]
[1769612060557,0.16849705,3014.4,3012.4,3.57723106]
[1769612060858,0.16611,3014.3,3012.4,3.57723106]
[1769612061561,0.00238705,3014.4,3012.9,3.57723106]
[1769612062253,0.16608,3015.0,3012.9,3.57723106]
[1769612062757,0.16608,3015.0,3012.9,3.74342106]
[1769612062951,0.16609,3014.8,3012.9,3.57723106]
[1769612063154,3.47380272,3015.1,3012.9,3.57723106]
[1769612063354,3.47784338,3015.1,3012.9,3.57723106]
[1769612063557,3.47784338,3015.1,3013.0,3.57723106]
[1769612063558,0.27666729,3015.1,3013.0,3.57723106]
[1769612063762,0.44273729,3015.1,3013.0,3.57723106]
[1769612064062,0.16607,3015.0,3013.2,3.57723106]
[1769612064265,0.16609,3014.7,3013.2,3.57723106]
[1769612065365,0.16609,3014.7,3013.0,6.382]
[1769612065366,0.00404066,3015.1,3013.5,3.70908399]
[1769612066464,0.00404066,3015.1,3013.7,3.70908399]
[1769612066657,0.00404066,3015.1,3013.7,3.71309929]
[1769612066854,0.16601,3016.2,3014.0,3.31584916]
[1769612067059,0.43542318,3016.2,3014.0,3.31584916]
[1769612067259,0.16601,3016.2,3014.0,3.31584916]
[1769612068068,0.16895103,3016.2,3014.2,3.31584916]
[1769612070264,0.16895103,3016.2,3014.4,3.31584916]
[1769612070265,0.00294103,3016.2,3014.4,3.31584916]
[1769612070767,0.00294103,3016.2,3014.4,6.63884916]
[1769612070971,0.16602,3016.0,3014.5,3.31584916]
[1769612071664,3.06669253,3016.0,3014.5,3.31584916]
[1769612071862,0.16602,3016.0,3014.5,3.31584916]
[1769612072062,0.00294103,3016.2,3014.5,3.31584916]
[1769612073468,0.16598,3016.8,3015.0,3.31584916]
[1769612074167,0.2663795,3016.9,3015.0,3.31584916]
[1769612074468,44.28895,3017.3,3015.0,3.31584916]
[1769612074767,0.00292602,3016.9,3015.0,3.31584916]
[1769612074968,0.00292602,3016.9,3015.1,1.959]
[1769612075266,0.00292602,3016.9,3015.2,3.31584916]
[1769612075767,0.16599,3016.6,3015.2,3.31584916]
[1769612075961,0.00292602,3016.9,3015.2,3.31584916]
[1769612076669,0.43311126,3017.8,3016.0,3.31584916]
[1769612076867,2.9490594,3018.2,3016.0,3.31584916]
[1769612077166,3.21057707,3018.2,3016.2,3.31584916]
[1769612077366,3.21057707,3018.2,3016.3,3.31584916]
[1769612077367,2.9490594,3018.2,3016.3,3.31584916]
[1769612077669,0.00337484,3018.2,3016.3,3.31875596]
[1769612077966,0.27527038,3018.2,3016.3,3.31875596]
[1769612078368,0.00337484,3018.2,3016.3,3.31875596]
[1769612078769,2.99933814,3017.9,3016.5,3.31584916]
[1769612079364,2.83342814,3017.9,3016.5,3.31584916]
[1769612080673,0.16593,3017.6,3016.5,3.31584916]
[1769612082670,0.00337484,3018.2,3016.5,3.31584916]
[1769612082875,0.00337484,3018.2,3016.3,0.0029068]
[1769612082876,0.00337484,3018.2,3016.8,3.31584916]
[1769612083078,0.00337484,3018.2,3017.0,3.31584916]
[1769612083371,0.88859702,3019.1,3017.0,3.31584916]
[1769612083672,0.88859702,3019.1,3016.3,0.0029068]
[1769612083673,2.78766922,3019.0,3017.1,3.31584916]
[1769612083876,2.95351922,3019.0,3017.2,3.31584916]
[1769612084272,2.95762264,3019.0,3017.2,3.31584916]
[1769612084669,1.75716834,3018.9,3017.2,3.31584916]
[1769612084977,2.92931136,3018.8,3017.2,3.31584916]
[1769612085174,2.76344136,3018.8,3017.2,3.31584916]
[1769612085477,0.16588,3018.6,3017.2,3.31584916]
[1769612086176,0.00410342,3019.0,3017.2,3.31584916]
[1769612088479,0.00410342,3019.0,3017.4,3.31584916]
[1769612089868,0.16581,3019.8,3017.2,4.91130834]
[1769612089869,0.26783909,3019.8,3018.0,3.31584916]
[1769612090180,0.16578,3020.3,3018.0,3.48175916]
[1769612090373,0.16578,3020.3,3017.2,3.32]
[1769612090374,0.16578,3020.3,3018.2,4.9071575]
[1769612090569,0.16578,3020.3,3018.4,3.31584916]
[1769612090776,0.16578,3020.3,3018.5,3.31584916]
[1769612090971,2.76372259,3020.1,3018.5,3.31912554]
[1769612091275,0.00263259,3020.3,3018.5,3.31912554]
[1769612091871,0.1658,3020.0,3018.5,3.31912554]
[1769612092070,2.76635518,3020.3,3018.5,3.31912554]
[1769612092071,0.00263259,3020.3,3018.5,3.31912554]
[1769612093678,0.00263259,3020.3,3018.5,3.48500554]
[1769612093880,0.00263259,3020.3,3018.5,3.31912554]
[1769612094076,1.59130834,3020.1,3018.5,3.31912554]
[1769612094273,0.1658,3019.9,3018.5,3.31912554]
[1769612095177,2.85259826,3020.0,3018.5,3.31912554]
[1769612095477,3.01607118,3019.7,3018.5,3.31912554]
[1769612095779,0.16582,3019.7,3018.5,3.31912554]
[1769612096977,2.78434155,3019.8,3018.5,3.31912554]
[1769612096978,1.75712834,3019.6,3018.5,3.31912554]
[1769612097179,1.75712834,3019.6,3017.4,0.16594]
[1769612097180,0.16585,3019.0,3016.8,0.16597]
[1769612097878,3.31662155,3018.8,3016.8,0.16597]
[1769612098087,0.16587,3018.7,3016.8,0.00321307]
[1769612099178,0.16587,3018.7,3016.9,3.38574587]
[1769612099380,3.14799292,3018.9,3016.9,3.38574587]
[1769612099689,1.59130834,3019.1,3016.9,3.55171587]
[1769612100183,3.3117376,3019.0,3017.0,3.38574587]
[1769612100577,0.16586,3019.0,3017.0,3.55170587]
[1769612100976,3.1458776,3019.0,3017.0,3.38574587]
[1769612101178,1.75720834,3018.1,3017.0,3.38574587]
[1769612101378,0.16592,3017.8,3016.8,0.00321307]
[1769612102181,4.74049434,3018.1,3016.6,3.38574587]
[1769612102182,0.16593,3017.7,3016.6,3.38574587]
[1769612102584,1.59461674,3018.1,3016.6,3.38574587]
[1769612103088,3.30569536,3018.0,3016.6,3.38833331]
[1769612103686,3.30569536,3017.9,3016.6,3.38833331]
[1769612103889,3.30569536,3017.9,3016.6,0.00258744]
[1769612104487,6.23745601,3017.8,3016.6,0.00258744]
[1769612104688,3.10575473,3017.8,3016.6,0.00258744]
[1769612104990,0.16594,3017.4,3016.2,3.38574587]
[1769612105192,3.27169473,3017.4,3016.2,3.38574587]
[1769612105483,3.10575473,3017.8,3016.2,3.38574587]
[1769612105688,1.76051674,3018.1,3016.2,3.38574587]
[1769612105689,0.0033084,3018.1,3016.2,3.38574587]
[1769612105881,0.0033084,3018.1,3016.6,3.38574587]
[1769612106081,0.0033084,3018.1,3016.6,3.38896148]
[1769612107287,3.12375592,3019.1,3016.6,3.38896148]
[1769612107494,3.13533613,3019.0,3016.8,3.38574587]
[1769612107693,3.12375592,3019.1,3016.8,3.38574587]
[1769612107892,3.12706432,3018.5,3016.8,3.38574587]
[1769612108088,3.29294432,3018.5,3016.8,3.38574587]
[1769612108395,0.16877426,3018.5,3016.8,3.38574587]
[1769612108687,0.00289426,3018.5,3016.8,3.38574587]
[1769612108900,0.00289426,3018.5,3016.6,0.00321561]
[1769612108901,0.00289426,3018.5,3017.1,3.38574587]
[1769612111592,3.18571303,3018.5,3017.1,3.38574587]
[1769612111896,3.35159303,3018.5,3017.1,3.38574587]
[1769612112086,0.16589,3018.4,3017.2,4.00483759]
[1769612112787,3.18571303,3018.5,3017.2,4.00483759]
[1769612112788,0.00289426,3018.5,3017.2,4.00483759]
[1769612113388,0.16589,3018.4,3017.2,4.00483759]
[1769612116594,0.16589,3018.3,3017.2,4.00483759]
[1769612118191,0.1659,3018.2,3017.2,4.00483759]
[1769612118399,0.16591,3018.0,3017.2,0.61909172]
[1769612118593,0.16592,3017.8,3017.2,0.61909172]
[1769612118797,1.59130834,3018.4,3016.6,0.00321561]
[1769612118798,0.16593,3017.6,3016.6,0.00321561]
[1769612119100,0.16594,3017.5,3016.6,0.00321561]
[1769612119599,43.99256593,3017.6,3016.6,0.00321561]
[1769612119793,0.16595,3017.2,3016.2,3.38574587]
[1769612120402,40.8,3017.6,3016.2,3.38574587]
[1769612121098,40.8,3017.6,3016.2,3.38860252]
[1769612121698,0.16592,3017.8,3016.2,3.38860252]
[1769612122104,43.99256593,3017.8,3016.2,3.38860252]
[1769612122295,0.16594,3017.4,3016.2,3.38860252]
[1769612122594,0.16596,3017.2,3016.2,3.38860252]
[1769612122802,0.16598,3016.8,3015.8,3.38574587]
[1769612123300,0.16594,3017.4,3015.8,3.38574587]
[1769612123501,0.16595,3017.2,3015.8,3.38574587]
[1769612123699,0.16595,3017.2,3015.8,3.3885909]
[1769612123896,0.16596,3017.0,3015.8,3.3885909]
[1769612124101,3.19256593,3017.5,3015.8,3.3885909]
[1769612124302,3.13795556,3017.4,3015.8,3.3885909]
[1769612124507,3.13795556,3017.3,3015.8,3.3885909]
[1769612124696,3.35850593,3017.5,3015.8,3.3885909]
[1769612124893,0.16594,3017.5,3015.8,3.3885909]
[1769612126104,40.8,3017.8,3015.8,3.3885909]
[1769612126306,3.1406578,3017.7,3015.8,3.3885909]
[1769612126508,3.36904308,3017.9,3015.8,3.3885909]
[1769612126705,3.14217764,3017.8,3015.8,3.3885909]
[1769612127008,3.14217764,3017.7,3015.8,3.3885909]
[1769612127195,0.16593,3017.7,3015.8,3.3885909]
[1769612127396,0.16593,3017.6,3015.8,3.3885909]
[1769612128519,3.81152304,3017.5,3015.8,3.3885909]
[1769612128802,3.64558304,3017.5,3015.8,3.3885909]
[1769612129007,0.16595,3017.3,3015.8,3.3885909]
[1769612129203,3.64558304,3017.5,3015.8,3.3885909]
[1769612129204,0.16595,3017.2,3015.8,3.3885909]
[1769612130005,0.16592,3017.8,3015.8,3.3885909]
[1769612130210,3.14395946,3017.7,3015.8,3.3885909]
[1769612130402,3.64166273,3018.3,3016.3,3.67735204]
[1769612130606,3.1448487,3018.2,3016.3,3.67735204]
[1769612130912,3.1448487,3018.1,3016.3,3.67735204]
[1769612131105,4.88978261,3018.9,3016.3,3.67735204]
[1769612131106,3.64166273,3018.7,3016.3,3.67735204]
[1769612131412,0.16591,3017.9,3016.3,3.67735204]
[1769612133309,0.16589,3018.4,3016.5,3.67735204]
[1769612133914,44.41541389,3018.6,3016.5,3.67735204]
[1769612134110,3.14332505,3018.4,3016.5,3.67735204]
[1769612134302,3.14332505,3018.3,3016.5,3.67735204]
[1769612134614,3.56761956,3017.6,3016.1,3.67735204]
[1769612134909,0.16595,3017.3,3016.1,3.67735204]
[1769612135306,0.16591,3017.9,3016.1,3.67735204]
[1769612135507,3.30836755,3017.8,3016.1,3.67735204]
[1769612135705,3.14244755,3017.7,3016.1,3.67735204]
[1769612136513,3.30836755,3017.7,3016.1,3.67735204]
[1769612136713,0.16592,3017.7,3016.1,3.67735204]
[1769612137114,3.56942107,3017.8,3016.1,3.67735204]
[1769612137311,0.16595,3017.2,3016.1,3.67735204]
[1769612137616,4.88978261,3018.4,3015.8,0.00284503]
[1769612137617,0.16596,3017.1,3015.8,3.68019707]
[1769612138504,3.56942107,3017.6,3015.8,3.68019707]
[1769612138705,3.14308146,3017.5,3015.8,3.68019707]
[1769612138912,3.56942107,3017.6,3015.8,3.68019707]
[1769612139113,3.143156,3017.5,3015.8,3.68019707]
[1769612139308,0.16594,3017.5,3015.8,3.68019707]
[1769612140215,11.32378261,3018.4,3016.0,3.84337204]
[1769612140216,0.16591,3018.1,3016.0,3.84337204]
[1769612140408,3.14481665,3018.0,3016.1,3.67735204]
[1769612140720,0.00289426,3018.5,3016.4,3.84334204]
[1769612140910,3.14627731,3018.4,3016.4,3.84334204]
[1769612141109,3.14627731,3018.3,3016.4,3.84334204]
[1769612141315,3.14627731,3018.2,3016.4,3.84334204]
[1769612141524,0.1659,3018.1,3016.6,3.67735204]
[1769612141704,3.3130846,3018.0,3016.6,3.67735204]
[1769612141910,0.16591,3018.0,3016.6,3.67735204]
[1769612142712,0.16595,3017.2,3016.2,3.67735204]
[1769612145919,0.16596,3017.1,3016.2,3.67735204]
[1769612146218,0.16596,3017.1,3015.8,3.68019707]
[1769612148116,0.16597,3016.9,3015.8,3.68019707]
[1769612148706,3.59831298,3017.2,3015.8,3.68019707]
[1769612148908,3.59820655,3017.0,3015.8,3.68019707]
[1769612149113,3.14921666,3016.9,3015.8,3.68019707]
[1769612149417,3.59820655,3017.0,3015.8,3.68019707]
[1769612149616,0.16598,3016.7,3015.8,3.68019707]
[1769612152217,3.14856797,3016.6,3015.8,0.00284503]
[1769612152520,0.16601,3016.3,3015.4,3.67735204]
[1769612153420,0.16999662,3016.3,3015.4,3.68049006]
[1769612154422,0.43870631,3016.3,3015.4,3.68049006]
[1769612155724,0.16597,3016.9,3015.4,3.68049006]
[1769612156119,3.40234731,3016.5,3015.4,3.68049006]
[1769612156322,0.166,3016.3,3015.4,3.68049006]
[1769612156520,0.16601,3016.2,3015.4,3.68049006]
[1769612157024,0.1685091,3016.2,3015.4,3.68049006]
[1769612158617,0.0024991,3016.2,3015.4,3.68049006]
[1769612162217,0.16602,3016.0,3015.4,3.68049006]
[1769612162413,0.16603,3015.8,3015.1,3.41490046]
[1769612163219,3.40484641,3016.2,3014.1,3.41490046]
[1769612163424,3.40234731,3016.0,3014.1,3.41490046]
[1769612163725,0.16606,3015.4,3014.1,3.41490046]
[1769612164122,0.16606,3015.4,3014.1,3.41780526]
[1769612164524,6.64602,3016.1,3014.1,3.41780526]
[1769612164919,0.16602,3016.0,3014.1,3.41780526]
[1769612165619,3.40234731,3016.0,3014.1,3.41780526]
[1769612165930,0.16605,3015.5,3014.1,3.41780526]
[1769612166921,3.40234731,3015.8,3014.1,3.41780526]
[1769612167227,0.16606,3015.3,3014.1,3.41780526]
[1769612168119,0.16609,3014.7,3014.1,0.0029048]
[1769612168517,0.166,3016.4,3014.4,3.41490046]
[1769612169336,0.16601,3016.1,3014.4,3.41490046]
[1769612169520,0.16605,3015.5,3014.4,3.41490046]
[1769612169824,3.57085641,3016.2,3014.4,3.41490046]
[1769612170029,0.16601,3016.1,3014.4,3.41490046]
[1769612170728,0.0024991,3016.2,3014.4,3.58100046]
[1769612171321,0.1685091,3016.2,3014.4,3.41490046]
[1769612174532,0.1685091,3016.2,3014.5,3.41490046]
[1769612175431,0.0024991,3016.2,3014.7,3.41490046]
[1769612176132,0.16598,3016.7,3014.7,3.41490046]
[1769612176329,0.16598,3016.7,3014.7,9.22976132]
[1769612176531,0.16598,3016.7,3014.8,3.41490046]
[1769612177129,0.17016459,3016.7,3014.8,3.41490046]
[1769612178037,0.17016459,3016.7,3014.9,3.41490046]
[1769612179132,0.166,3016.4,3014.9,3.41490046]
[1769612179337,0.166,3016.3,3014.9,3.41490046]
[1769612181039,0.16601,3016.1,3014.9,3.41490046]
[1769612181245,0.16602,3016.0,3014.9,3.41490046]
[1769612181744,3.40234731,3015.8,3014.6,3.41490046]
[1769612181947,1.58713995,3016.1,3014.1,0.0029048]
[1769612181948,0.16605,3015.2,3014.3,3.41490046]
[1769612182539,0.16605,3015.2,3014.1,0.0029048]
[1769612183046,0.16605,3015.2,3014.1,3.41780526]
[1769612185643,40.8,3015.6,3014.1,3.41780526]
[1769612185848,3.16241523,3015.5,3014.1,3.41780526]
[1769612186048,3.16241523,3015.4,3014.1,3.41780526]
[1769612186248,40.8,3015.6,3014.1,3.41780526]
[1769612186749,0.16602,3015.7,3014.1,3.41780526]
[1769612187245,40.96602,3015.7,3014.1,3.41780526]
[1769612187448,0.16602,3015.7,3014.1,3.41780526]
[1769612187646,6.64599,3016.3,3014.1,3.41780526]
[1769612187838,0.166,3016.1,3014.1,3.41780526]
[1769612188241,0.166,3016.0,3014.1,3.41780526]
[1769612188749,3.37024851,3016.2,3014.1,3.41780526]
[1769612188949,3.37024851,3016.0,3014.1,3.41780526]
[1769612189845,0.16602,3015.8,3014.1,3.41780526]
[1769612190155,0.16602,3015.7,3014.1,3.41780526]
[1769612192745,0.16602,3015.6,3014.1,6.45580526]
[1769612192946,0.16602,3015.6,3014.1,3.41780526]
[1769612193148,0.16604,3015.4,3014.1,3.41780526]
[1769612194339,0.16604,3015.3,3014.1,3.41780526]
[1769612194846,3.37024851,3015.7,3014.1,3.41780526]
[1769612195946,0.16604,3015.3,3014.1,3.41780526]
[1769612196151,0.16605,3015.2,3014.1,3.41780526]
[1769612197751,0.16601,3015.8,3014.1,3.41780526]
[1769612198947,0.16603,3015.5,3014.1,3.41780526]
[1769612199444,3.37024851,3016.1,3014.1,3.41780526]
[1769612199647,3.32788004,3016.0,3014.1,3.41780526]
[1769612199952,3.16188004,3015.9,3014.1,3.41780526]
[1769612200151,0.166,3016.0,3014.1,3.41780526]
[1769612200648,0.166,3016.0,3014.4,3.68078988]
[1769612201346,3.37024851,3016.5,3014.4,3.68078988]
[1769612201552,0.16598,3016.5,3014.4,3.84687988]
[1769612202654,0.16598,3016.4,3014.6,3.68078988]
[1769612202950,0.166,3016.0,3014.6,3.68078988]
[1769612203159,0.16602,3015.8,3014.6,3.68078988]
[1769612203960,0.16602,3015.7,3014.6,3.68078988]
[1769612204258,3.37024851,3016.0,3014.6,3.68078988]
[1769612204259,0.16603,3015.4,3014.6,3.68078988]
[1769612205262,0.16605,3015.2,3014.2,3.68078988]
[1769612206257,0.16605,3015.1,3014.2,3.68078988]
[1769612206956,0.16608,3014.6,3013.8,3.68078988]
[1769612207260,0.16608,3014.6,3012.9,3.68078988]
[1769612207860,0.16608,3014.6,3012.9,3.6842124]
[1769612208368,0.16611,3014.1,3012.9,3.6842124]
[1769612208565,0.00233118,3014.1,3012.9,3.6842124]
[1769612208861,0.16613,3013.8,3012.9,3.6842124]
[1769612213863,0.00233118,3014.1,3012.9,3.6842124]
[1769612215268,3.322,3015.2,3012.9,3.6842124]
[1769612215269,6.64606,3015.0,3012.9,3.6842124]
[1769612215468,0.16606,3015.0,3012.9,3.6842124]
[1769612215764,3.322,3015.2,3012.9,3.6842124]
[1769612215765,0.16606,3014.9,3012.9,3.6842124]
[1769612215970,0.16606,3014.9,3013.0,3.57225357]
[1769612216161,0.16862227,3014.9,3013.0,3.57225357]
[1769612218466,0.16862227,3014.9,3013.2,3.57225357]
[1769612218676,0.00256227,3014.9,3013.2,3.73841357]
[1769612219774,0.00256227,3014.9,3013.4,3.57225357]
[1769612220377,0.16603,3015.4,3013.4,3.57225357]
[1769612220672,0.16605,3015.1,3013.4,3.57225357]
[1769612220873,0.16607,3014.8,3013.4,3.57225357]
[1769612221478,0.16859441,3014.8,3013.4,3.57225357]
[1769612222572,0.16603,3015.4,3013.7,3.57225357]
[1769612222770,6.48,3015.7,3013.7,3.57225357]
[1769612223569,6.64901203,3015.7,3013.8,3.04]
[1769612223773,6.64901203,3015.7,3013.9,3.57225357]
[1769612224277,0.00299203,3015.7,3014.2,3.57225357]
[1769612224678,0.00299203,3015.7,3014.4,3.57225357]
[1769612225081,0.16901203,3015.7,3014.4,3.57225357]
[1769612226273,0.16602,3015.6,3014.4,3.57225357]
[1769612227075,3.49855632,3015.7,3014.4,3.57225357]
[1769612227278,0.16605,3015.2,3014.4,3.57225357]
[1769612227574,3.49855632,3015.7,3014.4,3.57225357]
[1769612227575,0.16901203,3015.7,3014.4,3.57225357]
[1769612227780,3.49855632,3015.7,3014.4,3.57225357]
[1769612228182,3.49556429,3015.5,3013.2,3.57225357]
[1769612228477,3.1543416,3015.6,3013.2,3.57225357]
[1769612228478,3.49556429,3015.3,3013.2,3.57225357]
[1769612228984,0.16607,3014.8,3013.2,3.57225357]
[1769612230678,0.16607,3014.8,3013.2,6.61225357]
[1769612230982,0.16607,3014.8,3013.3,3.57225357]
[1769612231180,0.16607,3014.7,3013.3,3.57225357]
[1769612233581,0.16606,3015.0,3013.3,3.57225357]
[1769612233788,40.8,3015.6,3013.3,3.57225357]
[1769612233789,3.49556429,3015.1,3013.3,3.57225357]
[1769612234381,0.16604,3015.3,3013.7,3.57225357]
[1769612234876,0.00299203,3015.7,3013.9,3.57225357]
[1769612235779,0.00299203,3015.7,3013.9,3.73836357]
[1769612236284,0.00299203,3015.7,3014.2,3.57225357]
[1769612236480,8.66789578,3017.7,3014.4,3.57225357]
[1769612236481,0.16598,3016.4,3014.4,3.57225357]
[1769612237090,0.16598,3016.4,3014.4,3.73834357]
[1769612237689,0.16846927,3016.4,3014.4,3.73834357]
[1769612238789,0.16846927,3016.4,3014.2,6.36]
[1769612238790,0.16846927,3016.4,3014.6,3.57225357]
[1769612240688,0.16846927,3016.4,3014.6,3.73833357]
[1769612241285,3.66403356,3016.4,3014.6,3.73833357]
[1769612241589,3.66157429,3016.2,3014.6,3.57225357]
[1769612241787,3.49556429,3016.2,3014.6,3.57225357]
[1769612241982,3.49556429,3016.0,3014.6,3.57225357]
[1769612242891,0.16604,3015.7,3014.6,3.57225357]
[1769612243194,0.16605,3015.5,3013.6,3.57225357]
[1769612243492,3.49556429,3015.7,3013.6,3.57225357]
[1769612243493,3.66162429,3015.2,3013.6,3.57225357]
[1769612243893,0.16607,3015.1,3013.6,3.57225357]
[1769612244092,9.895,3016.2,3013.6,3.57225357]
[1769612244093,3.66164429,3014.9,3013.6,3.57225357]
[1769612244287,0.16609,3014.8,3013.6,3.57225357]
[1769612244797,3.42726745,3014.3,3013.0,3.57225357]
[1769612245599,0.16611,3014.3,3013.0,3.57225357]
[1769612246202,3.42726745,3014.3,3013.0,3.57225357]
[1769612246702,0.16611,3014.3,3013.0,3.57225357]
[1769612248509,40.8,3014.7,3013.0,3.57225357]
[1769612248799,3.52761082,3014.9,3013.0,3.57225357]